bitfinex/quotes_SOLUSD_20250611
["timestamp","ask_amount","ask_price","bid_price","bid_amount"]
[1749666192300,50.14583741,163.32,163.23,6.3775]
[1749666192517,26.14216157,163.32,163.28,24.00367584]
[1749666192826,50.64216157,163.32,163.28,24.00367584]
[1749666193010,6.12332374,163.31,163.28,24.00367584]
[1749666194930,24.64216157,163.32,163.3,24.00367584]
[1749666195231,6.1222921,163.34,163.31,24.00367584]
[1749666195402,6.1222921,163.34,163.32,24.00367584]
[1749666197018,6.1222921,163.34,163.31,24.00367584]
[1749666199030,6.1222921,163.34,163.3,24.00367584]
[1749666199202,6.1222921,163.34,163.26,20.27524886]
[1749666199397,30.12596794,163.34,163.3,24.00367584]
[1749666200628,6.1222921,163.34,163.3,24.00367584]
[1749666200923,39.54158582,163.36,163.32,24.00367584]
[1749666201124,7.42,163.36,163.33,24.00367584]
[1749666201298,38.02159131,163.36,163.32,24.00367584]
[1749666201501,13.54159131,163.36,163.32,24.00367584]
[1749666201715,50.00367584,163.33,163.26,1.6256]
[1749666201930,24.00367584,163.31,163.26,1.6256]
[1749666202128,48.48367584,163.32,163.28,24.00367584]
[1749666202427,24.48,163.32,163.28,24.00367584]
[1749666203205,6.12332374,163.31,163.24,18.64964886]
[1749666203525,6.12332374,163.31,163.28,24.00367584]
[1749666204737,6.12332374,163.31,163.24,18.64964886]
[1749666204935,6.12332374,163.31,163.27,24.00367584]
[1749666205106,6.12332374,163.31,163.28,24.00367584]
[1749666205309,6.12332374,163.31,163.24,18.64964886]
[1749666205612,54.60674409,163.32,163.28,24.00367584]
[1749666205814,30.60306825,163.32,163.24,18.64964886]
[1749666206028,30.60306825,163.32,163.28,24.00367584]
[1749666206336,54.60674409,163.32,163.24,18.64964886]
[1749666206506,54.60674409,163.32,163.27,24.00367584]
[1749666207311,54.60674409,163.32,163.28,24.00367584]
[1749666207812,30.60306825,163.32,163.28,24.00367584]
[1749666208022,54.60674409,163.32,163.24,18.64964886]
[1749666208213,54.60674409,163.32,163.28,24.00367584]
[1749666208420,26.0,163.33,163.29,24.00367584]
[1749666208614,26.0,163.33,163.24,18.64964886]
[1749666208615,6.12221274,163.34,163.31,24.00367584]
[1749666208920,7.42,163.36,163.32,24.00367584]
[1749666209225,7.42,163.36,163.35,24.00367584]
[1749666210230,7.42,163.36,163.31,18.64964886]
[1749666210430,7.42,163.36,163.34,24.00367584]
[1749666211244,13.54149658,163.36,163.33,24.00367584]
[1749666212219,7.42,163.36,163.34,24.00367584]
[1749666212418,7.42,163.36,163.35,24.00367584]
[1749666213512,50.00367584,163.41,163.35,24.00367584]
[1749666213513,50.48,163.41,163.35,24.00367584]
[1749666213716,56.59993541,163.41,163.32,18.64964886]
[1749666213918,80.60361125,163.41,163.32,18.64964886]
[1749666214121,24.00367584,163.4,163.36,24.00367584]
[1749666214442,24.48,163.4,163.36,24.00367584]
[1749666214739,56.12361125,163.41,163.37,24.00367584]
[1749666214922,0.14216157,163.41,163.38,24.00367584]
[1749666215121,24.62216157,163.41,163.38,24.00367584]
[1749666215323,24.62216157,163.41,163.37,24.00367584]
[1749666215718,30.74197101,163.41,163.37,24.00367584]
[1749666216026,30.74197101,163.41,163.38,24.00367584]
[1749666216335,24.62216157,163.41,163.39,24.00367584]
[1749666216530,32.1188499,163.43,163.39,24.00367584]
[1749666216823,24.48,163.42,163.39,24.00367584]
[1749666217025,24.48,163.42,163.32,18.933972]
[1749666217225,24.48,163.42,163.38,24.00367584]
[1749666217815,0.14216157,163.42,163.38,24.00367584]
[1749666218119,24.48,163.41,163.38,24.00367584]
[1749666218446,30.599684,163.41,163.38,24.00367584]
[1749666219349,24.48,163.41,163.39,24.00367584]
[1749666219845,24.48,163.43,163.4,24.00367584]
[1749666220147,6.11856985,163.44,163.41,24.00367584]
[1749666220148,0.14216157,163.44,163.41,24.00367584]
[1749666220328,22.65410436,163.48,163.35,18.64964886]
[1749666220329,6.0385,163.5,163.43,24.00367584]
[1749666220527,42.99212879,163.51,163.47,24.00367584]
[1749666220528,6.56338882,163.49,163.47,24.00367584]
[1749666220728,0.4467381,163.49,163.47,24.00367584]
[1749666220935,24.9267381,163.49,163.48,24.00367584]
[1749666221141,0.4467381,163.49,163.48,24.00367584]
[1749666224123,0.4467381,163.49,163.44,24.00367584]
[1749666224446,30.70916546,163.49,163.45,24.00367584]
[1749666224666,6.70548962,163.49,163.46,24.00367584]
[1749666225232,6.70548962,163.49,163.42,1.6071]
[1749666225432,30.70916546,163.49,163.45,24.00367584]
[1749666225632,30.70916546,163.49,163.44,24.00367584]
[1749666225980,24.00367584,163.45,163.41,24.00367584]
[1749666226152,24.46,163.45,163.38,1.6071]
[1749666226353,30.57843246,163.45,163.41,24.00367584]
[1749666226564,54.5821083,163.45,163.41,24.00367584]
[1749666227071,54.5821083,163.45,163.38,1.6071]
[1749666227274,30.57843246,163.45,163.42,24.00367584]
[1749666228470,54.5821083,163.45,163.41,24.00367584]
[1749666228847,30.57843246,163.45,163.38,1.6071]
[1749666229047,24.46,163.45,163.42,24.00367584]
[1749666229372,24.46,163.45,163.44,24.00367584]
[1749666229571,50.46,163.46,163.44,24.00367584]
[1749666229882,24.46,163.46,163.43,24.00367584]
[1749666230071,48.46367584,163.46,163.42,24.00367584]
[1749666230255,48.46367584,163.46,163.41,24.00367584]
[1749666230450,54.5814318,163.46,163.41,24.00367584]
[1749666230766,54.5814318,163.46,163.42,24.00367584]
[1749666230963,0.14216157,163.45,163.41,24.00367584]
[1749666231161,0.14216157,163.45,163.42,24.00367584]
[1749666232365,24.46,163.46,163.43,24.00367584]
[1749666232565,50.14583741,163.48,163.41,18.64964886]
[1749666232566,26.0,163.48,163.41,18.64964886]
[1749666232767,0.4467381,163.49,163.47,24.00367584]
[1749666233155,0.4467381,163.49,163.48,24.00367584]
[1749666233572,0.4467381,163.49,163.47,24.00367584]
[1749666233967,0.4467381,163.49,163.41,44.64964886]
[1749666234167,0.14216157,163.48,163.45,24.00367584]
[1749666234373,24.46,163.47,163.44,24.00367584]
[1749666234580,24.46,163.47,163.46,24.00367584]
[1749666235978,0.4467381,163.49,163.46,24.00367584]
[1749666236176,0.4467381,163.49,163.48,24.00367584]
[1749666240163,0.4467381,163.49,163.48,42.6533247]
[1749666240354,15.27998568,163.62,163.48,42.6533247]
[1749666240355,22.65998568,163.62,163.49,18.64964886]
[1749666240561,24.46,163.6,163.51,18.64964886]
[1749666240775,64.44940562,163.61,163.51,18.64964886]
[1749666240979,24.46,163.6,163.57,24.00367584]
[1749666241169,24.46,163.6,163.51,18.64964886]
[1749666241491,24.46,163.6,163.56,24.00367584]
[1749666241785,24.46,163.6,163.57,24.00367584]
[1749666242170,8.33333333,163.61,163.59,24.00367584]
[1749666242378,8.33333333,163.61,163.55,1.5037]
[1749666242581,8.33333333,163.61,163.6,24.00367584]
[1749666243688,8.33333333,163.61,163.55,1.5037]
[1749666244064,8.33333333,163.61,163.6,24.00367584]
[1749666244275,8.33333333,163.61,163.55,1.5037]
[1749666244474,8.33333333,163.61,163.6,24.00367584]
[1749666244720,8.33333333,163.61,163.55,1.5037]
[1749666244962,8.33333333,163.61,163.6,24.00367584]
[1749666246368,8.33333333,163.61,163.6,48.00735168]
[1749666246774,8.33333333,163.61,163.6,24.00367584]
[1749666247388,8.33333333,163.61,163.6,48.00735168]
[1749666247688,24.44,163.69,163.6,66.65700054]
[1749666247877,24.44,163.69,163.6,42.6533247]
[1749666248071,24.44,163.69,163.65,24.00367584]
[1749666248879,48.44367584,163.69,163.65,24.00367584]
[1749666249099,54.55282821,163.69,163.65,24.00367584]
[1749666249275,0.14216157,163.68,163.63,24.00367584]
[1749666249471,0.14216157,163.68,163.58,18.64964886]
[1749666249796,24.44,163.69,163.67,24.00367584]
[1749666250093,45.58,163.7,163.67,24.00367584]
[1749666250680,21.14,163.7,163.67,24.00367584]
[1749666250875,69.58367584,163.7,163.66,24.00367584]
[1749666251070,51.68876317,163.7,163.67,24.00367584]
[1749666251393,51.68876317,163.7,163.66,24.00367584]
[1749666251592,51.68876317,163.7,163.61,18.64964886]
[1749666251777,51.68876317,163.7,163.66,24.00367584]
[1749666252472,0.14216157,163.71,163.69,24.00367584]
[1749666252798,26.0,163.72,163.69,24.00367584]
[1749666252996,0.5572531,163.82,163.75,0.42648471]
[1749666253177,0.5572531,163.82,163.76,10.21304738]
[1749666253377,0.5572531,163.82,163.81,24.28799898]
[1749666253689,0.5572531,163.82,163.81,24.00367584]
[1749666253892,0.5572531,163.82,163.65,10.0]
[1749666254202,24.00367584,163.8,163.75,24.00367584]
[1749666254704,24.58216157,163.81,163.78,24.00367584]
[1749666254993,0.5572531,163.82,163.8,24.00367584]
[1749666256098,0.5572531,163.82,163.79,24.00367584]
[1749666256304,0.5572531,163.82,163.78,24.00367584]
[1749666256490,0.5572531,163.82,163.73,44.64964886]
[1749666256689,0.5572531,163.82,163.78,24.00367584]
[1749666257300,0.5572531,163.82,163.73,44.64964886]
[1749666257598,0.5572531,163.82,163.79,24.00367584]
[1749666258298,26.28432314,163.8,163.75,24.00367584]
[1749666258609,0.14216157,163.78,163.75,24.00367584]
[1749666258901,0.14216157,163.78,163.76,24.00367584]
[1749666259122,0.14216157,163.78,163.75,24.00367584]
[1749666259276,0.14216157,163.78,163.68,1.6248]
[1749666259277,0.28432314,163.77,163.68,1.6248]
[1749666259481,0.14216157,163.75,163.71,24.00367584]
[1749666259685,48.42367584,163.75,163.71,24.00367584]
[1749666259900,24.42,163.75,163.71,24.00367584]
[1749666260377,24.56216157,163.75,163.74,24.00367584]
[1749666260574,24.42,163.75,163.74,24.00367584]
[1749666261004,24.42,163.75,163.73,24.00367584]
[1749666261200,24.42,163.75,163.67,26.0]
[1749666261392,6.1050061,163.8,163.74,24.00367584]
[1749666261602,30.10868194,163.8,163.75,24.00367584]
[1749666261907,0.14216157,163.79,163.75,24.00367584]
[1749666262103,24.42,163.78,163.74,24.00367584]
[1749666262302,0.14216157,163.77,163.64,24.42]
[1749666262603,0.14216157,163.77,163.73,24.00367584]
[1749666262804,0.14216157,163.77,163.68,26.0]
[1749666262805,24.43016055,163.77,163.68,26.0]
[1749666263106,0.14216157,163.75,163.72,24.00367584]
[1749666263280,6.24917006,163.75,163.72,24.00367584]
[1749666263487,30.2528459,163.75,163.69,4.45167673]
[1749666263687,6.24917006,163.75,163.7,24.00367584]
[1749666263921,24.42,163.74,163.7,24.00367584]
[1749666264589,24.42,163.74,163.71,24.00367584]
[1749666264791,24.42,163.74,163.73,24.00367584]
[1749666265197,0.14216157,163.76,163.73,24.00367584]
[1749666265392,0.14216157,163.76,163.67,18.64964886]
[1749666265609,0.14216157,163.76,163.68,4.45152626]
[1749666265790,0.14216157,163.76,163.63,0.28432314]
[1749666265791,6.24874668,163.76,163.72,24.00367584]
[1749666266210,0.14216157,163.76,163.73,24.00367584]
[1749666266603,6.24866908,163.76,163.67,44.64964886]
[1749666266807,6.24866908,163.76,163.73,24.00367584]
[1749666267016,6.24866908,163.76,163.67,26.0]
[1749666267017,30.25234492,163.76,163.67,26.0]
[1749666267194,6.24866908,163.76,163.71,24.00367584]
[1749666267397,0.14216157,163.74,163.67,26.0]
[1749666267602,0.14216157,163.74,163.64,18.64964886]
[1749666267603,0.14216157,163.74,163.7,24.00367584]
[1749666267915,0.14216157,163.74,163.71,28.46796065]
[1749666268090,0.14216157,163.74,163.71,24.00367584]
[1749666268295,0.14216157,163.74,163.72,24.00367584]
[1749666268910,0.14216157,163.74,163.73,4.47658969]
[1749666269794,0.14216157,163.74,163.71,24.00367584]
[1749666270426,0.14216157,163.74,163.72,24.00367584]
[1749666270618,30.11028879,163.76,163.72,24.00367584]
[1749666270619,0.14216157,163.75,163.72,24.00367584]
[1749666270831,6.10661295,163.76,163.72,24.00367584]
[1749666271012,0.14216157,163.76,163.67,44.64964886]
[1749666271211,0.14216157,163.76,163.72,24.00367584]
[1749666271411,26.0,163.78,163.75,24.00367584]
[1749666271620,80.52951097,163.78,163.74,24.00367584]
[1749666271814,80.52951097,163.78,163.67,44.64964886]
[1749666271815,0.14216157,163.76,163.72,24.00367584]
[1749666272631,0.14216157,163.76,163.67,44.64964886]
[1749666272936,0.14216157,163.76,163.72,24.00367584]
[1749666272937,24.14583741,163.76,163.72,24.00367584]
[1749666273300,0.14216157,163.74,163.65,18.64964886]
[1749666273512,54.67316802,163.74,163.69,24.00367584]
[1749666274532,54.67316802,163.74,163.7,24.00367584]
[1749666274920,54.67316802,163.74,163.69,24.00367584]
[1749666275118,24.56216157,163.74,163.71,24.00367584]
[1749666275329,30.66941231,163.74,163.71,24.00367584]
[1749666275626,54.67308815,163.74,163.7,24.00367584]
[1749666276310,30.66941231,163.74,163.7,24.00367584]
[1749666276503,24.56216157,163.74,163.7,24.00367584]
[1749666276943,30.66955571,163.74,163.7,24.00367584]
[1749666277107,30.66955571,163.74,163.67,26.0]
[1749666277316,24.56216157,163.74,163.71,24.00367584]
[1749666278029,30.66947959,163.74,163.71,24.00367584]
[1749666278215,30.66947959,163.74,163.72,2.17671634]
[1749666278545,30.66947959,163.74,163.7,24.00367584]
[1749666278737,30.66947959,163.74,163.71,26.18040353]
[1749666278942,30.66947959,163.74,163.72,2.1767267]
[1749666279244,30.66947959,163.74,163.73,2.17672644]
[1749666279816,24.56216157,163.74,163.73,2.1767139]
[1749666280048,24.56216157,163.74,163.73,26.18036163]
[1749666280346,24.56216157,163.74,163.73,24.00367584]
[1749666280548,24.56216157,163.74,163.73,26.18238653]
[1749666280713,24.56216157,163.74,163.73,24.00367584]
[1749666280918,24.56216157,163.74,163.73,26.18337461]
[1749666281120,26.0,163.78,163.73,24.00367584]
[1749666281330,24.42,163.77,163.74,16.49134443]
[1749666281528,24.42,163.77,163.75,2.17952266]
[1749666281817,14.45397748,163.77,163.76,2.17952328]
[1749666282022,0.14216157,163.76,163.73,14.31181591]
[1749666282217,0.14216157,163.76,163.74,2.17950279]
[1749666282460,0.14216157,163.76,163.75,2.17950253]
[1749666282618,0.14216157,163.76,163.75,2.17947568]
[1749666282951,24.56216157,163.76,163.68,40.31181591]
[1749666283128,24.56216157,163.76,163.74,14.31181591]
[1749666283318,24.56216157,163.76,163.68,40.31181591]
[1749666283319,24.42,163.76,163.75,26.03419063]
[1749666283523,24.42,163.76,163.75,2.17947034]
[1749666283833,24.42,163.76,163.75,2.17947027]
[1749666284035,24.42,163.76,163.74,23.8547215]
[1749666284227,24.42,163.76,163.75,2.17947466]
[1749666284424,24.42,163.76,163.74,23.8547215]
[1749666284628,24.42,163.76,163.75,2.17947585]
[1749666284832,24.42,163.76,163.75,2.17949505]
[1749666285133,54.52338038,163.76,163.75,2.17954096]
[1749666285541,0.14216157,163.75,163.69,23.8547215]
[1749666285727,23.99688307,163.75,163.71,23.8547215]
[1749666285926,23.99688307,163.75,163.72,2.17973411]
[1749666286137,23.99688307,163.75,163.71,23.8547215]
[1749666286454,23.99688307,163.75,163.72,2.17569616]
[1749666286651,23.99688307,163.75,163.66,27.5984]
[1749666286652,23.99688307,163.75,163.73,2.17569514]
[1749666286954,23.99688307,163.75,163.71,23.8547215]
[1749666286955,0.14216157,163.75,163.71,23.8547215]
[1749666287160,6.24918131,163.75,163.71,23.8547215]
[1749666287661,30.10390281,163.75,163.66,27.5984]
[1749666287851,30.10390281,163.75,163.7,23.8547215]
[1749666288055,6.24918131,163.75,163.71,23.8547215]
[1749666288235,30.10390281,163.75,163.72,2.17566774]
[1749666288434,30.10390281,163.75,163.71,23.8547215]
[1749666288952,30.10390281,163.75,163.72,2.17567156]
[1749666289157,30.10390281,163.75,163.73,2.17567689]
[1749666289346,30.10390281,163.75,163.74,2.17567664]
[1749666289868,26.0,163.71,163.61,1.5587]
[1749666290160,0.14216157,163.66,163.57,7.8279]
[1749666290350,23.8547215,163.64,163.59,23.8547215]
[1749666290737,24.42,163.65,163.57,7.8279]
[1749666290943,24.42,163.65,163.61,23.8547215]
[1749666291241,54.38540329,163.65,163.6,23.8547215]
[1749666291559,54.38540329,163.65,163.57,7.8279]
[1749666291746,30.53068179,163.65,163.6,23.8547215]
[1749666291945,30.53068179,163.65,163.57,7.8279]
[1749666291946,30.53068179,163.65,163.61,23.8547215]
[1749666292251,54.38540329,163.65,163.61,23.8547215]
[1749666292848,30.53068179,163.65,163.61,23.8547215]
[1749666293154,30.53068179,163.65,163.57,7.8279]
[1749666293354,30.53068179,163.65,163.6,23.8547215]
[1749666293531,54.38540329,163.65,163.57,7.8279]
[1749666293737,54.38540329,163.65,163.6,23.8547215]
[1749666294155,48.2747215,163.65,163.6,23.8547215]
[1749666294457,24.42,163.65,163.61,23.8547215]
[1749666294648,24.42,163.65,163.62,23.8547215]
[1749666294848,24.42,163.65,163.61,23.8547215]
[1749666295239,48.2747215,163.65,163.57,7.8279]
[1749666295460,23.8547215,163.64,163.6,23.8547215]
[1749666295762,23.8547215,163.64,163.59,23.8547215]
[1749666295961,23.8547215,163.63,163.59,23.8547215]
[1749666296132,0.14216157,163.64,163.59,23.8547215]
[1749666296339,23.8547215,163.63,163.59,23.8547215]
[1749666296757,23.99688307,163.64,163.59,23.8547215]
[1749666298467,23.8547215,163.63,163.59,23.8547215]
[1749666298667,24.42,163.62,163.58,23.8547215]
[1749666298964,24.42,163.62,163.59,23.8547215]
[1749666300434,24.42,163.62,163.57,27.5587]
[1749666300868,24.42,163.62,163.59,23.8547215]
[1749666301261,24.42,163.62,163.6,23.8547215]
[1749666302557,6.25247207,163.66,163.61,23.8547215]
[1749666302742,26.0,163.67,163.63,23.8547215]
[1749666302743,24.44,163.65,163.63,23.8547215]
[1749666302941,24.44,163.65,163.58,18.64964886]
[1749666303181,24.44,163.65,163.61,23.8547215]
[1749666303349,38.77495513,163.65,163.61,14.33495513]
[1749666303542,24.44,163.65,163.61,14.33495513]
[1749666304368,24.44,163.65,163.62,14.33495513]
[1749666304794,44.88558815,163.65,163.57,27.5587]
[1749666304963,14.33495513,163.64,163.57,27.5587]
[1749666305156,14.33495513,163.63,163.58,14.33495513]
[1749666305346,24.44,163.62,163.58,14.33495513]
[1749666305550,24.44,163.62,163.59,14.33495513]
[1749666306254,24.44,163.62,163.6,14.33495513]
[1749666307151,24.44,163.62,163.61,14.33495513]
[1749666307662,24.44,163.63,163.61,14.33495513]
[1749666307869,24.44,163.63,163.62,14.33495513]
[1749666308556,14.4771167,163.65,163.61,14.33495513]
[1749666308758,24.44,163.64,163.61,14.33495513]
[1749666308958,24.44,163.64,163.58,26.0]
[1749666309158,24.44,163.64,163.61,14.33495513]
[1749666310157,155.2913,163.74,163.6,14.33495513]
[1749666310357,14.33495513,163.71,163.67,14.33495513]
[1749666310562,14.33495513,163.71,163.66,14.33495513]
[1749666310862,26.0,163.69,163.66,14.33495513]
[1749666311068,50.44,163.69,163.66,14.33495513]
[1749666311265,64.77495513,163.69,163.6,14.33495513]
[1749666311570,0.14216157,163.67,163.58,44.64964886]
[1749666311777,24.44,163.66,163.6,14.33495513]
[1749666312069,26.0,163.69,163.6,14.33495513]
[1749666312070,50.44,163.69,163.6,14.33495513]
[1749666312681,24.44,163.69,163.6,14.33495513]
[1749666312978,24.44,163.69,163.66,14.33495513]
[1749666313156,26.14216157,163.7,163.67,14.33495513]
[1749666313481,50.58216157,163.7,163.67,14.33495513]
[1749666313661,50.58216157,163.7,163.66,14.33495513]
[1749666314064,71.02598592,163.7,163.66,14.33495513]
[1749666314367,71.02598592,163.7,163.61,6.2678]
[1749666314566,71.02598592,163.7,163.66,14.33495513]
[1749666315155,56.69103079,163.7,163.67,14.33495513]
[1749666315676,56.69103079,163.7,163.61,6.2678]
[1749666316062,56.69103079,163.7,163.66,14.33495513]
[1749666316267,71.02598592,163.7,163.61,6.2678]
[1749666316470,56.69103079,163.7,163.66,14.33495513]
[1749666316983,50.58216157,163.7,163.67,14.33495513]
[1749666317674,56.69101954,163.7,163.61,6.2678]
[1749666317871,56.69101954,163.7,163.66,14.33495513]
[1749666318959,56.69101954,163.7,163.67,14.33495513]
[1749666321358,50.58216157,163.7,163.67,14.33495513]
[1749666321685,56.69091194,163.7,163.67,14.33495513]
[1749666321989,24.42,163.69,163.67,14.33495513]
[1749666322304,24.42,163.69,163.66,14.33495513]
[1749666323619,24.42,163.69,163.67,14.33495513]
[1749666323930,24.42,163.69,163.61,6.2678]
[1749666324220,24.42,163.69,163.66,14.33495513]
[1749666324511,24.42,163.69,163.67,14.33495513]
[1749666324813,24.42,163.69,163.61,6.2678]
[1749666324814,24.56216157,163.69,163.68,14.33495513]
[1749666325389,7.32,163.73,163.68,14.33495513]
[1749666325587,7.32,163.73,163.65,1.6653]
[1749666325930,0.14216157,163.71,163.69,14.33495513]
[1749666326085,24.42,163.7,163.69,14.33495513]
[1749666326285,0.14216157,163.69,163.65,1.6653]
[1749666326486,0.14216157,163.69,163.66,14.33495513]
[1749666326706,0.14216157,163.69,163.67,14.33495513]
[1749666326993,24.42,163.7,163.68,14.33495513]
[1749666327185,24.42,163.7,163.69,14.33495513]
[1749666328289,24.42,163.7,163.68,14.33495513]
[1749666330187,30.52874083,163.7,163.68,14.33495513]
[1749666330395,30.52874083,163.7,163.67,14.33495513]
[1749666331689,30.52874083,163.7,163.65,1.6653]
[1749666331892,30.52874083,163.7,163.67,14.33495513]
[1749666332394,30.52874083,163.7,163.6,1.5085]
[1749666332395,14.33495513,163.68,163.6,1.5085]
[1749666332590,14.33495513,163.64,163.56,7.6262]
[1749666332819,0.14216157,163.65,163.59,14.33495513]
[1749666332820,24.42,163.63,163.59,14.33495513]
[1749666333020,0.14216157,163.62,163.59,14.33495513]
[1749666333318,0.14216157,163.62,163.57,14.33495513]
[1749666333319,6.11209583,163.61,163.57,14.33495513]
[1749666333501,24.42,163.6,163.58,14.33495513]
[1749666334231,24.42,163.6,163.57,14.33495513]
[1749666334391,24.42,163.6,163.52,13.5589344]
[1749666334392,0.14216157,163.59,163.52,13.5589344]
[1749666334589,0.14216157,163.59,163.55,14.33495513]
[1749666335293,0.14216157,163.59,163.56,14.33495513]
[1749666335294,6.11321677,163.58,163.56,14.33495513]
[1749666335499,24.42,163.57,163.52,7.6262]
[1749666335701,24.42,163.57,163.54,14.33495513]
[1749666336202,24.42,163.57,163.52,1.5085]
[1749666336406,38.75495513,163.57,163.52,15.84345513]
[1749666336605,24.42,163.57,163.53,14.33495513]
[1749666336823,38.75495513,163.57,163.53,14.33495513]
[1749666336996,38.75495513,163.57,163.52,15.84345513]
[1749666337315,20.44891942,163.56,163.52,15.84345513]
[1749666337619,20.44891942,163.56,163.52,1.5085]
[1749666338711,6.11396429,163.56,163.52,15.84345513]
[1749666338932,35.73383015,163.56,163.52,1.5085]
[1749666339236,14.33495513,163.53,163.47,15.95545513]
[1749666339419,14.33495513,163.5,163.47,1.6205]
[1749666339604,6.11583389,163.51,163.48,14.33495513]
[1749666339804,24.44,163.54,163.5,14.33495513]
[1749666340045,24.44,163.54,163.53,14.33495513]
[1749666340211,52.18891942,163.56,163.52,14.33495513]
[1749666340728,52.18891942,163.56,163.51,14.33495513]
[1749666341222,37.85396429,163.56,163.52,14.33495513]
[1749666341731,52.18891942,163.56,163.52,14.33495513]
[1749666341945,52.18891942,163.56,163.51,14.33495513]
[1749666342108,52.18891942,163.56,163.52,14.33495513]
[1749666342908,52.18891942,163.56,163.51,14.33495513]
[1749666343205,14.33495513,163.55,163.51,14.33495513]
[1749666343404,6.11471199,163.54,163.49,26.0]
[1749666343642,6.11471199,163.54,163.5,14.33495513]
[1749666343811,20.44966712,163.54,163.5,14.33495513]
[1749666344139,24.44,163.53,163.49,14.33495513]
[1749666344342,38.77495513,163.53,163.48,14.33495513]
[1749666344559,14.33495513,163.52,163.46,26.0]
[1749666344873,14.33495513,163.5,163.45,14.33495513]
[1749666345011,24.44,163.5,163.49,14.33495513]
[1749666345210,24.44,163.53,163.49,14.33495513]
[1749666345536,24.44,163.53,163.5,14.33495513]
[1749666345537,30.55519771,163.53,163.5,14.33495513]
[1749666346254,6.11476306,163.54,163.51,14.33495513]
[1749666346426,30.55476306,163.54,163.51,14.33495513]
[1749666346623,30.55476306,163.54,163.46,18.933972]
[1749666346933,44.88971819,163.54,163.46,18.64964886]
[1749666347151,44.88971819,163.54,163.49,14.33495513]
[1749666348247,14.33495513,163.52,163.48,14.33495513]
[1749666348443,14.33495513,163.53,163.49,14.33495513]
[1749666348753,14.33495513,163.53,163.48,14.33495513]
[1749666349883,6.11545988,163.52,163.48,14.33495513]
[1749666350026,20.45041501,163.52,163.48,14.33495513]
[1749666350225,24.44,163.51,163.48,14.33495513]
[1749666351349,23.94,163.51,163.49,14.33495513]
[1749666352155,30.05593213,163.51,163.49,14.33495513]
[1749666352352,30.05593213,163.51,163.44,46.85185513]
[1749666352534,30.05593213,163.51,163.48,14.33495513]
[1749666352733,14.33495513,163.5,163.43,1.6205]
[1749666352935,14.33495513,163.49,163.45,14.33495513]
[1749666353241,24.44,163.48,163.46,14.33495513]
[1749666354053,30.55700001,163.48,163.45,14.33495513]
[1749666354632,30.55700001,163.48,163.43,1.6205]
[1749666354842,30.55700001,163.48,163.45,14.33495513]
[1749666355257,14.33495513,163.47,163.43,1.6205]
[1749666355431,14.33495513,163.47,163.4,6.1849]
[1749666355635,14.33495513,163.44,163.38,1.6326]
[1749666355835,30.55864139,163.44,163.38,1.6326]
[1749666356130,44.89359652,163.44,163.4,14.33495513]
[1749666356350,24.44,163.44,163.41,14.33495513]
[1749666356857,24.44,163.44,163.42,14.33495513]
[1749666357769,9.23385443,163.51,163.43,14.33495513]
[1749666357931,7.28,163.5,163.47,14.33495513]
[1749666358132,7.28,163.5,163.49,14.33495513]
[1749666361659,0.14216157,163.56,163.49,14.33495513]
[1749666361869,0.14216157,163.57,163.54,14.33495513]
[1749666362032,30.57333079,163.58,163.54,14.33495513]
[1749666362354,0.14216157,163.57,163.54,14.33495513]
[1749666362533,30.57333079,163.58,163.5,26.0]
[1749666362534,6.11333079,163.58,163.5,26.0]
[1749666362737,20.44828592,163.58,163.53,14.33495513]
[1749666362944,0.14216157,163.57,163.54,14.33495513]
[1749666363138,0.14216157,163.57,163.5,26.0]
[1749666363537,0.14216157,163.57,163.53,14.33495513]
[1749666363730,14.33495513,163.55,163.5,14.33495513]
[1749666363930,0.14216157,163.56,163.52,14.33495513]
[1749666364149,24.46,163.58,163.47,26.0]
[1749666364150,0.14216157,163.58,163.54,14.33495513]
[1749666364352,7.28,163.59,163.56,14.33495513]
[1749666364563,7.28,163.59,163.58,14.33495513]
[1749666365073,7.28,163.59,163.57,14.33495513]
[1749666365233,6.11214002,163.61,163.57,14.33495513]
[1749666365433,31.12,163.69,163.6,14.33495513]
[1749666365434,14.33495513,163.65,163.6,14.33495513]
[1749666365633,26.0,163.63,163.59,14.33495513]
[1749666365942,20.44611447,163.64,163.59,14.33495513]
[1749666366148,6.11115934,163.64,163.6,14.33495513]
[1749666366458,6.11115934,163.64,163.57,1.6112]
[1749666366459,30.57067392,163.65,163.61,14.33495513]
[1749666366661,24.46,163.65,163.62,14.33495513]
[1749666366957,24.46,163.65,163.61,14.33495513]
[1749666367160,24.46,163.65,163.63,14.33495513]